bitfinex/quotes_ETHUSD_20251130
["timestamp","ask_amount","ask_price","bid_price","bid_amount"]
[1764538771912,0.32873016,3023.0,3022.6,0.001]
[1764538771913,7.45318146,3023.0,3022.6,0.001]
[1764538772117,4.46686566,3022.7,3022.6,0.001]
[1764538772354,2.78420723,3022.7,3022.6,0.001]
[1764538772537,3.51106313,3022.7,3022.6,0.001]
[1764538772843,3.72106313,3022.7,3022.6,0.001]
[1764538773145,7.02936365,3022.7,3022.6,0.001]
[1764538773365,6.14244489,3022.7,3022.6,0.001]
[1764538773658,6.35144489,3022.7,3022.6,0.001]
[1764538774758,2.37674437,3022.7,3022.6,0.001]
[1764538774923,5.69973029,3022.7,3022.6,0.001]
[1764538776217,4.98663068,3022.7,3022.6,0.001]
[1764538778321,3.84703068,3022.7,3022.6,0.001]
[1764538778640,0.53873016,3022.7,3022.6,0.001]
[1764538778830,0.1865,3023.0,3022.6,0.009]
[1764538779039,0.53873016,3022.9,3022.6,0.009]
[1764538780235,0.99613016,3022.9,3022.6,0.009]
[1764538781661,0.53873016,3022.9,3022.8,0.008]
[1764538781959,0.53873016,3022.9,3022.6,3.30940177]
[1764538782787,0.53873016,3022.9,3022.6,0.001]
[1764538784364,0.99613016,3022.9,3022.6,0.001]
[1764538784538,1.42654247,3022.9,3022.6,0.001]
[1764538785564,0.4957,3022.7,3022.6,0.001]
[1764538785757,1.28183016,3022.7,3022.6,0.001]
[1764538786063,4.59013068,3022.7,3022.6,0.001]
[1764538786364,8.04606618,3022.7,3022.6,0.001]
[1764538786565,0.32873016,3022.3,3021.7,3.44134012]
[1764538786935,0.32873016,3022.0,3021.7,3.44134012]
[1764538787266,0.32873016,3022.1,3021.7,3.44134012]
[1764538787445,0.4574,3022.2,3021.7,3.44134012]
[1764538787646,0.4574,3022.2,3021.7,3.23234012]
[1764538789436,0.4574,3022.2,3021.7,6.68827562]
[1764538790463,4.3024918,3022.5,3021.7,9.99767099]
[1764538790668,0.32873016,3022.4,3021.9,3.4559355]
[1764538791050,0.78613016,3022.4,3021.9,3.4559355]
[1764538792247,0.78613016,3022.4,3021.9,6.76504417]
[1764538792654,0.4574,3022.4,3021.9,6.76504417]
[1764538794163,5.2219362,3022.5,3021.9,6.76504417]
[1764538794362,5.55066636,3022.5,3021.9,6.76504417]
[1764538794547,6.04796636,3022.5,3021.9,6.76504417]
[1764538794749,6.04796636,3022.5,3022.1,3.4559355]
[1764538794750,1.32265232,3022.5,3022.1,3.4559355]
[1764538795277,0.4599,3022.2,3021.9,3.4559355]
[1764538795449,0.4599,3022.2,3021.9,6.76511053]
[1764538795647,0.82603016,3022.4,3021.8,3.30923443]
[1764538796248,0.4973,3022.4,3021.8,3.30923443]
[1764538796475,1.30600638,3022.4,3021.8,3.30923443]
[1764538797180,0.97727622,3022.4,3021.8,3.30923443]
[1764538797360,0.97727622,3022.4,3021.9,6.7650594]
[1764538798246,1.6858714,3022.4,3021.9,6.7650594]
[1764538798477,0.70859518,3022.4,3022.1,3.4559355]
[1764538798779,0.70859518,3022.4,3021.9,6.7650594]
[1764538798981,0.70859518,3022.4,3021.9,6.7730594]
[1764538799278,0.70859518,3022.3,3021.9,6.7650594]
[1764538799446,0.4973,3022.4,3021.9,6.7650594]
[1764538799646,0.70945569,3022.3,3021.9,6.7650594]
[1764538799886,0.4973,3022.4,3021.9,6.7650594]
[1764538800182,0.70945569,3022.3,3021.9,6.7650594]
[1764538800479,0.70945569,3022.2,3021.9,6.7650594]
[1764538800678,0.70945569,3022.1,3021.9,6.7650594]
[1764538800887,0.4973,3022.4,3021.9,6.7650594]
[1764538801062,0.71077835,3022.3,3022.0,0.008]
[1764538801250,0.71077835,3022.2,3022.0,0.008]
[1764538801452,0.71077835,3022.1,3022.0,3.31706684]
[1764538801780,0.71077835,3022.1,3022.0,3.3421575]
[1764538802083,0.71077835,3022.1,3022.0,3.3501575]
[1764538803567,0.71077835,3022.1,3022.0,8.76102325]
[1764538803768,1.38421876,3022.7,3022.0,8.72793259]
[1764538803993,1.20873055,3022.6,3022.0,11.02466329]
[1764538804152,0.71143055,3022.5,3022.2,3.4559355]
[1764538804352,0.71143055,3022.4,3022.2,3.4559355]
[1764538804663,0.4973,3022.6,3022.2,3.4559355]
[1764538804664,0.71143055,3022.3,3022.2,3.4559355]
[1764538805073,0.71143055,3022.3,3022.2,3.4639355]
[1764538805465,0.71143055,3022.3,3022.2,6.77278335]
[1764538806671,1.38421876,3022.7,3022.2,6.77278335]
[1764538806984,1.20868662,3022.6,3022.2,6.77278335]
[1764538807153,0.71138662,3022.5,3022.2,6.77278335]
[1764538807358,0.71138662,3022.4,3022.2,6.77278335]
[1764538807670,0.71137262,3022.3,3022.2,6.77278335]
[1764538808272,1.66857262,3022.3,3021.6,0.88791876]
[1764538808475,1.66850376,3022.2,3021.8,0.72559411]
[1764538808674,0.71130376,3022.1,3021.8,0.75868696]
[1764538808868,0.9572,3022.2,3021.8,0.75868696]
[1764538809080,0.71132153,3022.1,3021.8,0.75868696]
[1764538809269,0.4973,3022.2,3021.8,0.75868696]
[1764538809458,0.71134696,3022.1,3021.9,3.30917634]
[1764538809654,0.82603016,3022.4,3022.0,0.03309066]
[1764538809990,0.71134703,3022.3,3022.0,0.03309066]
[1764538810201,0.71134703,3022.2,3022.0,0.03309066]
[1764538810392,0.71134703,3022.1,3022.0,0.03309066]
[1764538811471,0.4993,3022.3,3022.0,0.04109066]
[1764538811672,0.71141748,3022.2,3022.1,3.30895734]
[1764538812786,1.17131748,3022.2,3022.0,3.309039]
[1764538812987,0.4599,3022.2,3022.0,3.309039]
[1764538813163,0.9572,3022.2,3022.0,3.309039]
[1764538813565,0.9572,3022.1,3021.8,4.03480081]
[1764538813765,0.4973,3022.1,3021.8,4.03480081]
[1764538814500,0.4973,3022.1,3021.8,7.37717951]
[1764538814700,0.4973,3022.1,3021.8,7.34408666]
[1764538815200,0.4973,3022.1,3021.9,0.03309176]
[1764538815593,0.4973,3022.1,3021.8,7.34408666]
[1764538816809,0.4973,3022.1,3021.8,4.03480081]
[1764538817207,0.4973,3022.1,3021.8,7.34408666]
[1764538817410,0.4973,3022.1,3021.9,0.03309176]
[1764538817581,0.4993,3022.3,3021.9,0.03309176]
[1764538817907,0.71135436,3022.2,3022.0,3.30906684]
[1764538818107,0.4993,3022.3,3022.0,3.30906684]
[1764538818303,0.4599,3022.1,3022.0,3.30906684]
[1764538819008,0.9572,3022.1,3022.0,3.30906684]
[1764538819404,0.002,3022.3,3022.0,3.30906684]
[1764538819606,0.7112883,3022.2,3022.0,6.61813368]
[1764538819815,1.17115712,3022.1,3021.8,0.72559411]
[1764538819998,1.17115712,3022.1,3021.6,0.001]
[1764538819999,1.53161876,3021.9,3021.6,0.001]
[1764538820199,2.573863,3021.7,3021.6,0.001]
[1764538820414,3.28512012,3021.7,3021.6,0.001]
[1764538820586,3.78242012,3021.7,3021.6,0.001]
[1764538821209,2.80588139,3021.7,3021.6,0.001]
[1764538821513,2.59688139,3021.7,3021.6,0.001]
[1764538821708,6.4400471,3021.7,3021.6,0.001]
[1764538821898,3.01092157,3021.7,3021.6,0.001]
[1764538822104,6.6490471,3021.7,3021.6,0.001]
[1764538822601,3.50043281,3021.7,3021.6,0.001]
[1764538822985,6.80982818,3021.7,3021.6,0.001]
[1764538823488,5.92345299,3021.7,3021.6,0.001]
[1764538834215,2.61405762,3021.7,3021.6,0.001]
[1764538834420,1.78802746,3021.7,3021.6,0.001]
[1764538834619,5.09742283,3021.7,3021.6,0.001]
[1764538835114,5.55962283,3021.7,3021.6,0.001]
[1764538836328,5.35062283,3021.7,3021.6,0.001]
[1764538838427,0.71125712,3021.7,3021.6,0.4581]
[1764538838623,0.002,3021.8,3021.6,0.4581]
[1764538838999,0.71325712,3021.8,3021.6,0.4581]
[1764538839997,4.02254419,3021.8,3021.6,0.4581]
[1764538840198,3.31128707,3021.8,3021.6,0.4581]
[1764538841128,0.002,3021.8,3021.6,0.4581]
[1764538841322,0.71008448,3021.8,3021.6,0.4581]
[1764538842941,0.71008448,3021.8,3021.6,0.4081]
[1764538843229,0.70633052,3021.7,3021.6,0.4081]
[1764538847343,0.70633052,3021.7,3021.6,0.8671]
[1764538849006,0.70633052,3021.7,3021.5,0.001]
[1764538849204,0.002,3021.8,3021.5,0.001]
[1764538849920,0.4642,3021.8,3021.5,0.001]
[1764538850827,0.4595,3021.6,3021.5,0.001]
[1764538853844,0.9399,3021.6,3021.5,0.001]
[1764538855349,1.17007287,3021.6,3021.5,0.001]
[1764538855551,0.71057287,3021.6,3021.5,0.001]
[1764538855752,0.71057287,3021.6,3021.5,0.4587]
[1764538859959,0.71057287,3021.6,3021.5,0.001]
[1764538861229,0.71057287,3021.6,3021.5,0.4587]
[1764538861664,0.71057287,3021.6,3021.5,0.001]
[1764538861855,1.19247287,3021.6,3021.5,0.001]
[1764538862359,0.71057287,3021.6,3021.5,0.001]
[1764538862534,0.71057287,3021.6,3021.5,0.4587]
[1764538868436,0.71057287,3021.6,3021.5,0.9118]
[1764538868882,0.71057287,3021.6,3021.5,4.22141442]
[1764538871397,0.71057287,3021.6,3021.5,4.43041442]
[1764538871597,0.71057287,3021.6,3021.5,4.46351056]
[1764538872001,0.71057287,3021.6,3021.5,5.58707037]
[1764538872510,0.002,3021.8,3021.5,8.89668479]
[1764538872792,0.002,3021.8,3021.7,3.91906636]
[1764538873192,0.002,3021.8,3021.7,7.68156173]
[1764538874513,0.002,3021.8,3021.7,7.6812908]
[1764538874720,0.002,3021.8,3021.7,8.91372631]
[1764538884913,0.002,3021.8,3021.7,12.56632931]
[1764538889243,0.002,3021.8,3021.7,15.98874231]
[1764538891158,0.002,3021.8,3021.7,14.42864531]
[1764538891366,0.002,3021.8,3021.7,13.64380531]
[1764538891677,0.002,3021.8,3021.7,10.99587331]
[1764538893327,0.002,3021.8,3021.7,8.91372631]
[1764538893656,0.002,3021.8,3021.7,11.39897331]
[1764538896148,0.002,3021.8,3021.7,4.99953088]
[1764538896350,0.9519,3021.8,3021.6,0.21]
[1764538896582,0.3778,3021.7,3021.6,0.21]
[1764538896749,0.852,3021.7,3021.6,0.21]
[1764538897578,0.852,3021.7,3021.6,3.51950489]
[1764538898792,0.852,3021.7,3021.6,0.21]
[1764538901654,0.852,3021.7,3021.6,3.51950489]
[1764538903281,0.3778,3021.7,3021.6,3.51950489]
[1764538903471,0.3778,3021.7,3021.6,3.31050489]
[1764538903783,0.3778,3021.7,3021.6,3.32704435]
[1764538905757,0.852,3021.7,3021.6,0.001]
[1764538912883,1.56199232,3021.7,3021.6,0.001]
[1764538913078,1.08779232,3021.7,3021.6,0.001]
[1764538913389,0.3778,3021.7,3021.6,0.001]
[1764538913570,0.4985,3021.7,3021.6,0.001]
[1764538913890,0.9947,3021.7,3021.6,0.001]
[1764538917791,0.9947,3021.7,3021.6,3.31050489]
[1764538917997,0.4985,3021.7,3021.6,3.31050489]
[1764538920383,0.5005,3021.7,3021.6,3.31050489]
[1764538920704,0.002,3021.7,3021.6,3.31050489]
[1764538921474,0.002,3021.7,3021.6,7.22500032]
[1764538922107,0.002,3021.7,3021.6,6.77160032]
[1764538925117,0.5005,3021.7,3021.6,6.77160032]
[1764538925276,0.9967,3021.7,3021.6,0.001]
[1764538925501,0.9967,3021.7,3021.6,3.31050489]
[1764538926644,0.5005,3021.7,3021.6,3.31050489]
[1764538926824,0.5005,3021.7,3021.6,6.77160032]
[1764538928705,0.5005,3021.7,3021.6,3.31050489]
[1764538929134,0.9967,3021.7,3021.6,3.34359113]
[1764538930819,0.5005,3021.7,3021.6,3.34359113]
[1764538931026,0.9967,3021.7,3021.6,3.31050489]
[1764538931512,0.9967,3021.7,3021.6,3.34359113]
[1764538932451,0.5005,3021.7,3021.6,3.34359113]
[1764538932811,0.9967,3021.7,3021.6,3.34359113]
[1764538933017,0.9967,3021.7,3021.6,0.001]
[1764538933217,1.70729175,3021.7,3021.6,0.001]
[1764538938847,0.71259175,3021.7,3021.6,0.4544]
[1764538939041,0.002,3021.7,3021.6,0.4544]
[1764538941039,0.002,3021.7,3021.6,3.76390489]
[1764538943058,0.002,3021.7,3021.6,3.77660345]
[1764538943754,0.002,3021.7,3021.6,9.15001381]
[1764538943955,0.002,3021.7,3021.6,10.58651525]
[1764538944267,0.002,3021.7,3021.6,10.12971525]
[1764538944641,0.002,3021.7,3021.6,10.58651525]
[1764538945160,0.002,3021.7,3021.6,11.32065991]
[1764538945355,0.002,3021.7,3021.6,22.45316791]
[1764538945658,0.002,3021.7,3021.6,21.84216791]
[1764538946233,0.002,3021.7,3021.6,25.33829391]
[1764538946633,0.002,3021.7,3021.6,25.02991991]
[1764538946860,0.002,3021.7,3021.6,24.73275491]
[1764538947267,0.002,3021.7,3021.6,25.04188191]
[1764538949049,0.002,3021.7,3021.6,22.19036125]
[1764538949272,0.002,3021.7,3021.6,7.56532625]
[1764538949461,0.002,3021.7,3021.6,22.19036125]
[1764538949668,0.002,3021.7,3021.6,16.88507425]
[1764538951476,0.002,3021.7,3021.6,17.18886925]
[1764538951851,0.002,3021.7,3021.6,16.88507425]
[1764538952181,0.002,3021.7,3021.6,14.52417925]
[1764538952379,0.002,3021.7,3021.6,7.56532625]
[1764538952582,0.002,3021.7,3021.6,14.52417925]
[1764538953477,0.002,3021.7,3021.6,15.11817925]
[1764538953882,0.002,3021.7,3021.6,15.44681991]
[1764538954472,0.002,3021.7,3021.6,28.61666491]
[1764538954779,0.002,3021.7,3021.6,27.15755591]
[1764538954980,0.002,3021.7,3021.6,26.24849991]
[1764538955476,0.002,3021.7,3021.6,34.04052391]
[1764538955897,0.002,3021.7,3021.6,32.34696291]
[1764538956595,0.002,3021.7,3021.6,33.76347691]
[1764538956764,0.002,3021.7,3021.6,31.19406191]
[1764538957166,0.002,3021.7,3021.6,12.45399091]
[1764538957699,0.002,3021.7,3021.6,27.17441491]
[1764538958469,0.002,3021.8,3021.7,1.13109811]
[1764538958663,0.002,3021.8,3021.7,16.82576018]
[1764538959094,0.002,3021.8,3021.7,16.95824845]
[1764538959685,0.002,3021.8,3021.7,19.30183782]
[1764538959996,0.002,3021.8,3021.7,18.53782882]
[1764538960574,0.002,3021.8,3021.7,8.73924416]
[1764538960900,0.002,3021.8,3021.7,19.96460482]
[1764538961767,0.002,3021.8,3021.7,21.02871782]
[1764538962486,0.002,3021.8,3021.7,24.87871782]
[1764538962687,0.002,3021.8,3021.7,25.27631082]
[1764538963598,0.002,3022.4,3021.7,25.27631082]
[1764538963599,0.002,3022.7,3022.5,6.495829]
[1764538963897,0.002,3022.7,3022.6,1.64210701]
[1764538964288,0.002,3022.7,3022.6,2.23357861]
[1764538964888,0.002,3022.7,3022.6,14.83045361]
[1764538965802,0.002,3022.7,3022.6,18.13886358]
[1764538966201,0.002,3022.7,3022.6,17.63686658]
[1764538966401,0.002,3022.7,3022.6,12.22215658]
[1764538966573,0.9954,3022.7,3022.6,5.08298858]
[1764538966972,0.9954,3022.7,3022.6,7.16330258]
[1764538967188,0.9954,3022.7,3022.6,6.95430258]
[1764538967394,0.002,3022.7,3022.6,7.49194324]
[1764538967584,0.002,3022.7,3022.6,5.41162924]
[1764538967784,0.002,3022.7,3022.6,11.46371524]
[1764538969096,0.002,3022.7,3022.6,11.92271524]
[1764538969571,0.002,3022.7,3022.6,12.37831524]
[1764538969769,0.002,3022.7,3022.6,26.38686824]
[1764538970003,0.002,3022.7,3022.6,20.06455524]
[1764538970912,0.002,3022.7,3022.6,30.00725524]
[1764538971891,0.002,3022.7,3022.6,6.73173324]
[1764538972196,0.002,3022.7,3022.6,36.73173324]
[1764538976212,0.002,3022.9,3022.6,42.69769555]
[1764538976410,0.002,3022.9,3022.8,9.87635064]
[1764538976616,0.4783,3022.9,3022.8,9.87635064]
[1764538976812,0.9652,3022.9,3022.8,10.21780294]
[1764538976994,0.4889,3022.9,3022.8,10.21780294]
[1764538977316,0.4889,3022.9,3022.8,10.12822794]
[1764538977513,0.4889,3022.9,3022.8,15.86373497]
[1764538978219,0.4889,3022.9,3022.8,15.98804797]
[1764538979329,0.4889,3022.9,3022.8,14.66631197]
[1764538980227,0.4889,3022.9,3022.8,14.06431397]
[1764538980431,0.4889,3022.9,3022.8,15.93907697]
[1764538980726,0.9652,3022.9,3022.8,14.43833431]
[1764538981432,0.4889,3022.9,3022.8,15.61043631]
[1764538981627,0.4889,3022.9,3022.8,15.01643631]
[1764538981931,0.4889,3022.9,3022.8,15.34507697]
[1764538983632,0.4889,3022.9,3022.8,14.75107697]
[1764538984007,0.4889,3022.9,3022.8,14.42243631]
[1764538984232,0.4889,3022.9,3022.8,10.67007631]
[1764538984399,0.4889,3022.9,3022.8,14.70664497]
[1764538985660,0.4889,3022.9,3022.8,15.25634997]
[1764538986464,0.002,3022.9,3022.8,10.99871697]
[1764538986645,0.002,3022.9,3022.8,12.52572402]
[1764538987943,0.002,3022.9,3022.8,12.23391302]
[1764538988652,0.002,3022.9,3022.8,8.57140102]
[1764538988852,0.002,3022.9,3022.8,12.23391302]
[1764538989450,0.002,3022.9,3022.8,12.84491302]
[1764538990190,0.002,3022.9,3022.8,12.23391302]
[1764538990390,0.002,3022.9,3022.8,13.23842915]
[1764538990597,0.4889,3022.9,3022.8,13.23842915]
[1764538990790,0.4889,3022.9,3022.8,13.23042915]
[1764538991678,0.4889,3022.9,3022.8,12.90178849]
[1764538991888,0.9652,3022.9,3022.8,13.22748715]
[1764538992070,0.9652,3022.9,3022.8,12.89884649]
[1764538992272,0.9652,3022.9,3022.8,13.22748715]
[1764538992586,0.9652,3022.9,3022.8,12.89884649]
[1764538992786,0.9652,3022.9,3022.8,13.22748715]
[1764538993585,0.4889,3022.9,3022.8,13.22748715]
[1764538993787,0.002,3022.9,3022.8,14.39619115]
[1764538993975,0.002,3022.9,3022.8,14.85429115]
[1764538994893,0.002,3022.9,3022.8,25.56779815]
[1764538995262,0.002,3022.9,3022.8,26.02679815]
[1764538995462,0.002,3022.9,3022.8,25.69815749]
[1764538995763,0.002,3022.9,3022.8,23.23975115]
[1764538996096,0.002,3022.9,3022.8,23.55189815]
[1764538996458,0.002,3022.9,3022.8,27.00406944]
[1764538997094,0.002,3022.9,3022.8,26.80476944]
[1764538998376,0.002,3022.9,3022.8,26.34666944]
[1764538999177,0.002,3022.9,3022.8,26.80476944]
[1764538999497,0.4889,3022.9,3022.8,12.81212436]
[1764538999680,0.9652,3022.9,3022.8,11.25790323]
[1764538999875,1.1577,3022.9,3022.8,8.23783657]
[1764539000649,1.1577,3022.9,3022.8,6.76528616]
[1764539000773,1.1577,3022.9,3022.8,6.97428616]
[1764539000980,1.1577,3022.9,3022.8,7.69988027]
[1764539005887,0.002,3022.9,3022.8,8.48752093]
[1764539007897,0.002,3022.9,3022.8,19.39334593]
[1764539008142,0.002,3022.9,3022.8,24.28687993]
[1764539008311,0.002,3022.9,3022.8,24.41933267]
[1764539008817,0.002,3022.9,3022.8,37.11276867]
[1764539009520,0.002,3023.0,3022.9,11.67771377]
[1764539009726,0.002,3023.0,3022.9,15.69587568]
[1764539009929,0.002,3023.0,3022.9,16.00418268]
[1764539010821,0.002,3023.0,3022.9,8.78598232]
[1764539011123,0.002,3023.1,3022.9,22.8688323]
[1764539011328,0.002,3023.1,3023.0,32.09213707]
[1764539011825,0.002,3023.1,3023.0,32.38420084]
[1764539012222,0.002,3023.1,3023.0,35.69217305]
[1764539012434,0.002,3023.3,3023.2,14.57990685]
[1764539012599,0.002,3023.3,3023.2,15.24790685]
[1764539012931,0.002,3023.3,3023.2,18.95856926]
[1764539013241,0.002,3023.3,3023.2,18.49956926]
[1764539013397,0.002,3023.3,3023.2,17.98206926]
[1764539013722,0.002,3023.3,3023.2,18.44106926]
[1764539013907,0.002,3023.3,3023.2,30.77244026]
[1764539014102,0.002,3023.3,3023.2,34.21262839]
[1764539015015,0.002,3023.3,3023.2,35.26649139]
[1764539015325,0.002,3023.3,3023.2,26.92911339]
[1764539015728,0.4779,3023.3,3023.2,19.20552473]
[1764539016023,0.9573,3023.3,3023.2,4.03334748]
[1764539016191,0.9573,3023.3,3023.2,4.24234748]
[1764539016591,0.9573,3023.3,3023.2,4.2507833]
[1764539021428,0.9573,3023.3,3023.2,9.0734583]
[1764539021629,0.9573,3023.3,3023.2,9.06502248]
[1764539021926,0.9573,3023.3,3023.2,8.47102248]
[1764539022510,0.9573,3023.3,3023.2,9.05922248]
[1764539022718,0.9573,3023.3,3023.2,8.15422248]
[1764539022925,0.9573,3023.3,3023.2,4.24234748]
[1764539024134,0.9573,3023.3,3023.2,4.03334748]
[1764539024425,0.9573,3023.3,3023.2,4.24234748]
[1764539028739,0.9573,3023.3,3023.0,0.001]
[1764539028957,0.4759,3023.1,3023.0,4.03453971]
[1764539029114,0.4759,3023.1,3023.0,7.70063479]
[1764539029315,0.9553,3023.1,3023.0,7.70063479]
[1764539029860,0.9553,3023.1,3023.0,4.03453971]
[1764539030141,0.9553,3023.1,3023.0,7.49163479]
[1764539030940,0.002,3023.3,3023.0,10.799607]
[1764539031150,0.4794,3023.2,3023.1,0.03307862]
[1764539031518,0.9553,3023.2,3023.1,0.03307862]
[1764539031941,0.002,3023.3,3023.1,6.64880418]
[1764539032145,0.4814,3023.3,3023.1,6.64880418]
[1764539032317,0.4814,3023.3,3023.2,3.45709508]
[1764539032718,0.9761,3023.3,3023.2,3.45709508]
[1764539034557,0.9761,3023.3,3023.2,6.79792598]
[1764539034558,0.002,3023.3,3023.2,6.79792598]
[1764539034718,0.002,3023.3,3023.2,3.30775337]
[1764539034920,0.4967,3023.3,3023.2,3.30775337]
[1764539035230,0.9887,3023.3,3023.2,3.30775337]
[1764539038013,0.002,3023.3,3023.2,3.71325737]
[1764539038219,0.002,3023.3,3023.2,18.04821647]
[1764539038733,0.002,3023.3,3023.2,17.58921647]
[1764539039050,0.002,3023.3,3023.2,15.89919647]
[1764539039545,0.4967,3023.3,3023.2,4.73424847]
[1764539039750,0.9887,3023.3,3023.2,4.73424847]
[1764539042446,0.9887,3023.3,3023.2,3.30775337]
[1764539042647,0.002,3023.3,3023.2,7.25713337]
[1764539044355,0.9887,3023.3,3023.2,3.74038]
[1764539044653,0.9887,3023.3,3023.1,0.23585444]
[1764539044826,0.492,3023.2,3023.1,0.23585444]
[1764539045027,0.9867,3023.2,3023.1,3.69294952]
[1764539045248,0.9867,3023.2,3023.1,0.96144855]
[1764539046430,0.9867,3023.2,3023.1,4.26931133]
[1764539047234,0.9867,3023.2,3023.1,3.30786278]
[1764539047555,0.9867,3023.2,3023.1,3.51686278]
[1764539052069,0.002,3023.3,3023.1,12.57804211]
[1764539052362,0.494,3023.3,3023.2,0.72559411]
[1764539052737,0.9887,3023.3,3023.2,0.72559411]
[1764539054248,0.9887,3023.3,3023.2,4.43885148]
[1764539054460,0.4967,3023.3,3023.2,4.43885148]
[1764539054670,0.4967,3023.3,3023.2,5.64998199]
[1764539055159,0.002,3023.3,3023.2,5.64998199]
[1764539055334,0.002,3023.3,3023.2,5.65815584]
[1764539055530,0.002,3023.3,3023.2,5.64998199]
[1764539055728,0.002,3023.3,3023.2,5.65815584]
[1764539056549,0.002,3023.3,3023.2,6.15015584]
[1764539056750,0.4967,3023.3,3023.2,6.14198199]
[1764539056929,0.9887,3023.3,3023.2,6.14198199]
[1764539060065,0.002,3023.3,3023.2,6.14198199]
[1764539060644,0.4967,3023.3,3023.2,6.35098199]
[1764539061339,0.9887,3023.3,3023.2,4.73434748]
[1764539070583,0.9887,3023.3,3023.2,4.93085148]
[1764539070885,0.9887,3023.3,3023.2,5.13985148]
[1764539072583,0.4967,3023.3,3023.2,5.13985148]
[1764539073959,0.002,3023.3,3023.2,5.1550403]
[1764539074458,0.4759,3023.3,3023.2,5.13985148]
[1764539075990,0.002,3023.3,3023.2,5.13985148]
[1764539076787,0.002,3023.3,3023.2,18.27932348]
[1764539076989,0.002,3023.3,3023.2,20.84674085]
[1764539078188,0.002,3023.3,3023.2,21.17538151]
[1764539078998,0.002,3023.3,3023.2,20.84674085]
[1764539080274,0.002,3023.3,3023.2,20.51894785]
[1764539080475,0.002,3023.3,3023.2,12.44358185]
[1764539081592,0.9319,3023.3,3023.2,7.70726885]
[1764539081802,0.9319,3023.3,3023.2,5.13985148]
[1764539086017,0.9319,3023.3,3023.2,8.59753894]
[1764539089612,0.4759,3023.3,3023.2,8.59753894]
[1764539095712,0.963,3023.3,3023.2,8.59753894]
[1764539097013,0.963,3023.3,3023.2,5.13985148]
[1764539100221,0.963,3023.3,3023.2,4.93085148]
[1764539100405,0.963,3023.3,3023.2,5.13885148]
[1764539101413,0.963,3023.3,3023.2,0.897504]
[1764539101586,0.963,3023.3,3023.2,0.93359411]
[1764539102296,0.963,3023.3,3023.2,4.24134748]
[1764539102492,0.4759,3023.3,3023.2,4.24134748]
[1764539102717,0.002,3023.3,3023.2,4.70034748]
[1764539103584,0.002,3023.3,3023.2,9.02253894]
[1764539103789,0.002,3023.3,3023.2,28.61324457]
[1764539103985,0.002,3023.3,3023.2,28.84786657]
[1764539104525,0.002,3023.3,3023.2,25.53332657]
[1764539104924,0.002,3023.3,3023.2,27.79557157]
[1764539105818,0.002,3023.3,3023.2,11.10628357]
[1764539106020,0.002,3023.3,3023.2,27.79557157]
[1764539106903,0.002,3023.4,3023.3,18.54328177]
[1764539107203,0.002,3023.4,3023.3,22.71294418]
[1764539107608,0.002,3023.4,3023.3,13.80426918]
[1764539107919,0.002,3023.4,3023.3,13.46184582]
[1764539108630,0.002,3023.4,3023.3,12.11475112]
[1764539108796,0.002,3023.4,3023.3,12.44339178]
[1764539112442,0.002,3023.4,3023.3,11.98439178]
[1764539113997,0.002,3023.4,3023.3,11.65575112]
[1764539114294,0.002,3023.4,3023.3,11.98439178]
[1764539114943,0.002,3023.4,3023.3,12.44339178]
[1764539115941,0.002,3023.4,3023.3,12.11475112]
[1764539116242,0.002,3023.4,3023.3,12.44339178]
[1764539119028,0.002,3023.4,3023.3,8.66397678]
[1764539119226,0.002,3023.4,3023.3,14.77334537]
[1764539119459,0.002,3023.4,3023.3,14.32464937]
[1764539119942,0.002,3023.6,3023.5,10.80229577]
[1764539120275,0.002,3023.6,3023.5,18.19182539]
[1764539120568,0.002,3023.6,3023.5,20.97668052]
[1764539121330,0.002,3023.6,3023.5,21.73179652]
[1764539121830,0.002,3023.8,3023.6,1.13109811]
[1764539122167,0.002,3023.8,3023.7,16.72590821]
[1764539122349,0.002,3023.8,3023.7,20.62453183]
[1764539122536,0.002,3023.8,3023.7,23.87619424]
[1764539123955,0.002,3023.8,3023.7,23.49405758]
[1764539124123,0.002,3023.8,3023.7,24.28169824]
[1764539124329,0.002,3023.8,3023.7,22.70336224]
[1764539125924,0.002,3023.8,3023.7,22.37472158]
[1764539126158,0.002,3023.8,3023.7,22.70336224]
[1764539127453,0.002,3023.8,3023.7,22.24436224]
[1764539127654,0.002,3023.8,3023.7,18.05228124]
[1764539128460,0.002,3023.8,3023.7,17.00283324]
[1764539128858,0.002,3023.8,3023.7,16.08142824]
[1764539129064,0.002,3023.8,3023.7,9.02165183]
[1764539129665,0.9408,3023.8,3023.7,4.16521773]
[1764539129868,0.9408,3023.8,3023.7,4.24080051]
[1764539130064,0.9408,3023.8,3023.7,4.64630451]
[1764539137669,0.9408,3023.8,3023.7,4.67937657]
[1764539142183,0.9408,3023.8,3023.7,8.13466601]
[1764539142355,0.9408,3023.8,3023.7,8.56059395]
[1764539142356,0.002,3023.8,3023.7,8.56059395]
[1764539143053,0.002,3023.8,3023.7,21.40546887]
[1764539143473,0.002,3023.8,3023.7,20.90766153]
[1764539143658,0.002,3023.8,3023.7,15.99979853]
[1764539144508,0.002,3023.8,3023.7,15.69981353]
[1764539145301,0.002,3023.8,3023.7,15.99544053]
[1764539145794,0.9408,3023.8,3023.7,5.11460451]
[1764539146983,0.9408,3023.8,3023.7,0.4683]
[1764539147191,0.9408,3023.8,3023.7,3.5152064]
[1764539147367,0.9408,3023.8,3023.7,3.3072064]
[1764539147565,0.9408,3023.8,3023.7,3.5152064]
[1764539147960,0.9408,3023.8,3023.7,0.208]
[1764539148299,0.9408,3023.8,3023.6,0.001]
[1764539148300,1.65126426,3023.8,3023.6,0.001]
[1764539148588,1.75798069,3023.7,3023.6,0.001]
[1764539151964,5.21327013,3023.7,3023.6,0.001]